fUST/lending_fUST_20240517
["ID","MTS","AMOUNT","RATE_DAILY","PERIOD"]
[327257072,1715939691500,1407.23420979,9.999e-05,2]
[327257073,1715939879925,684.49986273,9.999e-05,2]
[327257074,1715939882497,4515.0,0.00025,60]
[327257076,1715940379997,684.49986273,9.999e-05,2]
[327257088,1715940441153,-250.0,0.00016193,2]
[327257089,1715940441175,-2319.45948352,0.0001627,2]
[327257093,1715940537938,150000.0,0.000265,120]
[327257197,1715940633110,-165.78079375,0.00016171,2]
[327257199,1715940633120,-11050.87116823,0.00016268,2]
[327257201,1715940633130,-34133.03096256,0.00016269,2]
[327257203,1715940633139,-1773.6121936,0.00016271,2]
[327257205,1715940633149,-296.371941,0.00016502,2]
[327257207,1715940633159,-709.0884584,0.00016524,2]
[327257209,1715940633168,-150.0,0.00016705,2]
[327257211,1715940633177,-150.0,0.00016705,2]
[327257213,1715940633186,-150.0,0.0001693,2]
[327257214,1715940633195,-150.0,0.0001693,2]
[327257216,1715940633205,-165.78079373,0.00016982,2]
[327257218,1715940633214,-1237.29190451,0.00017,2]
[327257220,1715940633223,-150.0,0.00017155,2]
[327257222,1715940633232,-189.55440765,0.00017357,2]
[327257225,1715940633242,-4221.46001999,0.00017732,2]
[327257227,1715940633251,-416.98047207,0.00017744,2]
[327257229,1715940633260,-970.37005877,0.00017788,2]
[327257230,1715940633270,-1106.20338144,0.00017792,2]
[327257232,1715940633281,-165.78079373,0.00017792,2]
[327257234,1715940633290,-12647.38449494,0.00017821,2]
[327257797,1715940639115,-11199.29585085,0.00017821,2]
[327257835,1715940640752,-27891.59957553,0.00017821,2]
[327257836,1715940640762,-502.07362199,0.00017853,2]
[327257838,1715940640771,-207.10824907,0.00017887,2]
[327257839,1715940640781,-500.0,0.00017888,2]
[327257840,1715940640790,-500.0,0.00017888,2]
[327257841,1715940640799,-500.0,0.00017888,2]
[327257842,1715940640808,-656.79,0.00017888,2]
[327257843,1715940640818,-500.0,0.00017888,2]
[327257844,1715940640827,-500.0,0.00017888,2]
[327257845,1715940640836,-500.0,0.00017888,2]
[327257846,1715940640846,-1691.29,0.00017888,2]
[327257847,1715940640856,-2812.53,0.00017888,2]
[327257848,1715940640865,-774.06,0.00017888,2]
[327257849,1715940640875,-515.61,0.00017888,2]
[327257850,1715940640886,-500.0,0.00017888,2]
[327257851,1715940640895,-150.02,0.00017888,2]
[327257852,1715940640905,-2352.7,0.00017888,2]
[327257853,1715940640914,-500.0,0.00017888,2]
[327257854,1715940640924,-242.08726604,0.00017889,2]
[327257855,1715940640934,-238.98093795,0.00017889,2]
[327257856,1715940640943,-248.8106347,0.00017889,2]
[327257857,1715940640952,-154.98428516,0.00017889,2]
[327257858,1715940640961,-704.0616487,0.00017889,2]
[327257859,1715940640971,-16705.14342811,0.00017889,2]
[327257860,1715940640980,-332.01253487,0.0001789,2]
[327257861,1715940640990,-154.75239617,0.00017891,2]
[327257862,1715940641000,-292.3163178,0.00017891,2]
[327257863,1715940641009,-346.77139459,0.00017891,2]
[327257864,1715940641019,-652.44538796,0.00017891,2]
[327257865,1715940641040,-7790.70280962,0.00017891,2]
[327257866,1715940641148,-1043.28965634,0.00017891,2]
[327257917,1715940643621,-5060.71130644,0.00017891,2]
[327257954,1715940823526,382.91,0.00019,10]
[327257955,1715940835798,1043.11503847,9.999e-05,2]
[327257959,1715941264624,675.749847,9.999e-05,2]
[327257960,1715941480188,273.37336231,9.9e-05,2]
[327257961,1715941594189,-1000.0,0.00036358,30]
[327257962,1715941594212,-1000.0,0.00036358,30]
[327257963,1715941594237,-1000.0,0.00036358,60]
[327257964,1715941594261,-1000.0,0.00036358,60]
[327257965,1715941594285,-1000.0,0.00036358,90]
[327257966,1715941594308,-1000.0,0.00036358,90]
[327257967,1715941594331,-1000.0,0.00036358,120]
[327257968,1715941594354,-1000.0,0.00036358,120]
[327257969,1715941594376,-160.0,0.00036358,30]
[327257970,1715941594398,-1645.04878389,0.00036358,120]
[327257971,1715941594421,-506.94487382,0.00036358,30]
[327257972,1715941594444,-1320.1630634,0.00036358,30]
[327257973,1715941594467,-319.64231628,0.00036358,120]
[327257974,1715941594490,-653.0,0.00036358,120]
[327257975,1715941594513,-466.31604539,0.00036358,120]
[327257976,1715941594537,-596.81640458,0.00036358,120]
[327257977,1715941594560,-683.81766052,0.00036358,120]
[327257978,1715941594583,-1163.2747689,0.00036358,30]
[327257979,1715941594608,-645.03207473,0.00036358,120]
[327257980,1715941594635,-485.76026191,0.00036358,120]
[327257981,1715941594666,-4216.47002408,0.00036358,30]
[327257982,1715941594691,-2441.25103436,0.00036358,120]
[327257983,1715941594714,-50258.38527821,0.00036358,60]
[327257984,1715941594742,-153.63962658,0.00036358,30]
[327257985,1715941594766,-2000.0,0.00036358,120]
[327257986,1715941594788,-203.32768143,0.00036358,30]
[327257987,1715941594811,-1013.29311702,0.00036358,120]
[327257988,1715941594833,-1692.41004734,0.00036358,30]
[327257989,1715941594859,-328702.05618845,0.00036358,120]
[327257990,1715941594884,-515.199999,0.00036358,30]
[327257991,1715941594909,-515.199999,0.00036358,60]
[327257992,1715941594934,-515.199999,0.00036358,90]
[327257993,1715941594958,-515.199999,0.00036358,120]
[327257994,1715941594984,-2000.0,0.00036358,120]
[327257995,1715941595010,-14525.24411812,0.00036358,120]
[327257996,1715941595036,-59059.3338638,0.00036358,30]
[327257997,1715941595059,-841.3149704,0.00036358,30]
[327257998,1715941595084,-41770.0,0.00036358,30]
[327257999,1715941595107,-507.0,0.00036358,30]
[327258000,1715941595129,-507.0,0.00036358,30]
[327258001,1715941595152,-507.0,0.00036358,30]
[327258002,1715941595176,-507.0,0.00036358,30]
[327258003,1715941595352,-507.0,0.00036358,30]
[327258004,1715941595378,-507.0,0.00036358,30]
[327258005,1715941595401,-507.0,0.00036358,30]
[327258006,1715941595423,-507.0,0.00036358,30]
[327258007,1715941595446,-507.0,0.00036358,30]
[327258008,1715941595469,-507.0,0.00036358,30]
[327258009,1715941595492,-507.0,0.00036358,30]
[327258010,1715941595515,-507.0,0.00036358,30]
[327258011,1715941595537,-507.0,0.00036358,30]
[327258012,1715941595560,-507.0,0.00036358,30]
[327258013,1715941595582,-507.0,0.00036358,30]
[327258014,1715941595604,-507.0,0.00036358,30]
[327258015,1715941595627,-507.0,0.00036358,30]
[327258016,1715941595653,-507.0,0.00036358,30]
[327258017,1715941595676,-507.0,0.00036358,30]
[327258018,1715941595699,-507.0,0.00036358,30]
[327258019,1715941595725,-507.0,0.00036358,30]
[327258020,1715941595748,-507.0,0.00036358,30]
[327258021,1715941595772,-507.0,0.00036358,30]
[327258022,1715941595796,-507.0,0.00036358,30]
[327258023,1715941595821,-507.0,0.00036358,30]
[327258024,1715941595847,-507.0,0.00036358,30]
[327258025,1715941595871,-507.0,0.00036358,30]
[327258026,1715941595894,-507.0,0.00036358,30]
[327258027,1715941595917,-507.0,0.00036358,30]
[327258028,1715941595940,-507.0,0.00036358,30]
[327258029,1715941595963,-507.0,0.00036358,30]
[327258030,1715941595986,-602.70771682,0.00036358,30]
[327258031,1715941596010,-159.34837424,0.00036358,30]
[327258032,1715941596034,-159.34837424,0.00036358,30]
[327258033,1715941596057,-159.34837424,0.00036358,30]
[327258034,1715941596080,-159.34837424,0.00036358,30]
[327258035,1715941596103,-159.34837424,0.00036358,30]
[327258036,1715941596126,-159.34837424,0.00036358,30]
[327258037,1715941596542,-159.34837424,0.00036358,30]
[327258038,1715941596569,-159.34837424,0.00036358,30]
[327258039,1715941596594,-159.34837424,0.00036358,30]
[327258040,1715941596617,-159.34837424,0.00036358,30]
[327258041,1715941596644,-159.34837428,0.00036358,30]
[327258042,1715941610716,-150.71364408,0.00024052,30]
[327258043,1715941610744,-580.0,0.0002408,35]
[327258044,1715941610769,-211.24,0.0002408,35]
[327258045,1715941610793,-376.0,0.0002408,35]
[327258046,1715941610818,-580.0,0.0002409,35]
[327258047,1715941610846,-150.5,0.0002409,35]
[327258048,1715941610872,-376.0,0.0002409,35]
[327258049,1715941610896,-158.24,0.0002409,35]
[327258050,1715941610921,-166.17,0.0002409,35]
[327258051,1715941610943,-150.5,0.000241,35]
[327258052,1715941610966,-580.0,0.000241,35]
[327258053,1715941610991,-376.0,0.000241,35]
[327258054,1715941611015,-150.5,0.000241,35]
[327258055,1715941611039,-150.5,0.000241,35]
[327258056,1715941611068,-150.5,0.0002497,35]
[327258057,1715941611092,-2352.0,0.0002497,35]
[327258058,1715941611115,-239.0,0.0002497,35]
[327258059,1715941611138,-150.5,0.0002498,35]
[327258060,1715941611162,-2352.0,0.0002498,35]
[327258061,1715941611185,-239.0,0.0002498,35]
[327258062,1715941611208,-150.5,0.0002499,35]
[327258063,1715941611234,-2352.0,0.0002499,35]
[327258064,1715941611261,-239.0,0.0002499,35]
[327258065,1715941611298,-200.0,0.000275,30]
[327258066,1715941611321,-205.996772,0.00027671,120]
[327258067,1715941611479,-253.0,0.0002866,120]
[327258068,1715941611505,-297.1435103,0.0003,120]
[327258069,1715941611528,-2059.61038536,0.0003,30]
[327258070,1715941611551,-1005.2437009,0.0003,120]
[327258071,1715941611575,-327.1633027,0.0003,120]
[327258072,1715941611599,-1205.70915261,0.000301,30]
[327258073,1715941611622,-1014.45996538,0.000308,120]
[327258074,1715941611660,-318.62649612,0.000339,30]
[327258075,1715941611686,-420.0,0.00034,120]
[327258076,1715941611710,-1000.0,0.00034,34]
[327258077,1715941611736,-829.0,0.00034,120]
[327258078,1715941611763,-1187.0031,0.00034718,30]
[327258079,1715941611787,-2755.85853136,0.00034753,45]
[327258080,1715941611811,-8295.06393636,0.00034784,49]
[327258081,1715941611834,-5000.0,0.00034788,46]
[327258082,1715941611857,-5000.0,0.00034788,51]
[327258083,1715941611881,-5000.0,0.00034788,49]
[327258084,1715941611904,-5000.0,0.00034788,51]
[327258085,1715941611937,-2352.0,0.0003487,35]
[327258086,1715941611962,-239.0,0.0003487,35]
[327258087,1715941611988,-580.0,0.0003487,35]
[327258088,1715941612012,-376.0,0.0003487,35]
[327258089,1715941612034,-166.92,0.0003488,35]
[327258090,1715941612062,-2352.0,0.0003488,35]
[327258091,1715941612086,-239.0,0.0003488,35]
[327258092,1715941612110,-2352.0,0.0003488,35]
[327258093,1715941612132,-239.0,0.0003488,35]
[327258094,1715941612155,-580.0,0.0003488,35]
[327258095,1715941612178,-376.0,0.0003488,35]
[327258096,1715941612203,-580.0,0.0003488,35]
[327258097,1715941612228,-376.0,0.0003488,35]
[327258098,1715941612251,-150.5,0.0003489,35]
[327258099,1715941612275,-2352.0,0.0003489,35]
[327258100,1715941612302,-239.0,0.0003489,35]
[327258101,1715941612327,-2352.0,0.0003489,35]
[327258102,1715941612351,-239.0,0.0003489,35]
[327258103,1715941612376,-580.0,0.0003489,35]
[327258104,1715941612400,-376.0,0.0003489,35]
[327258105,1715941612423,-580.0,0.0003489,35]
[327258106,1715941612451,-376.0,0.0003489,35]
[327258107,1715941612477,-2528192.83750283,0.00035,30]
[327258108,1715941623178,641.94,0.00010959,2]
[327258109,1715941625878,-471.0,0.0002409,35]
[327258110,1715941625908,-471.0,0.000241,35]
[327258111,1715941625985,-2565240.35809724,0.00035,30]
[327258112,1715941626012,-1347.7,0.00035,120]
[327258113,1715941626040,-10000.0,0.00035,30]
[327258114,1715941626067,-939.27200867,0.000356,30]
[327258115,1715941626092,-5550.393791,0.00035616,120]
[327258116,1715941626118,-200.0,0.00035621,120]
[327258117,1715941626151,-10000.0,0.00036,30]
[327258118,1715941626188,-580.77,0.0003628,35]
[327258119,1715941626240,-379.43,0.0003628,35]
[327258120,1715941626281,-580.0,0.0003629,35]
[327258121,1715941626312,-376.0,0.0003629,35]
[327258122,1715941626339,-3864.07610309,0.00036358,30]
[327258123,1715941631194,-471.0,0.0002408,35]
[327258124,1715941631257,-471.0,0.0003487,35]
[327258125,1715941631281,-471.0,0.0003488,35]
[327258126,1715941631304,-471.0,0.0003488,35]
[327258127,1715941631327,-471.0,0.0003489,35]
[327258128,1715941631350,-471.0,0.0003489,35]
[327258129,1715941631376,-474.38,0.0003628,35]
[327258130,1715941631400,-471.0,0.0003629,35]
[327258131,1715941631433,-1135.92389691,0.00036358,30]
[327258132,1715941631464,-240.07,0.0003638,35]
[327258133,1715941631490,-239.0,0.0003639,35]
[327258134,1715941631516,-2411.41830522,0.0003646,120]
[327258135,1715941631540,-10000.0,0.0003695,30]
[327258136,1715941631564,-1440.0,0.00037,120]
[327258137,1715941631588,-1106.74760819,0.0003707,31]
[327258138,1715941631613,-200.0,0.00037394,120]
[327258139,1715941631637,-154.79876161,0.00038,30]
[327258140,1715941631667,-1428.0759444,0.00038,30]
[327258141,1715941631693,-26614.0,0.00038,30]
[327258142,1715941631717,-251.62424165,0.0003815,120]
[327258143,1715941631744,-3099.50225523,0.000385,60]
[327258144,1715941631771,-6527.0,0.00038666,120]
[327258145,1715941631796,-10000.0,0.0003895,30]
[327258146,1715941631820,-5000.0,0.000393,71]
[327258147,1715941631844,-200.0,0.00039361,120]
[327258148,1715941631868,-5000.0,0.000399,73]
[327258149,1715941631893,-5000.0,0.0004,30]
[327258150,1715941631918,-310.05875515,0.0004,120]
[327258151,1715941631942,-546.21036732,0.0004,120]
[327258152,1715941631965,-2584.67181008,0.0004,120]
[327258153,1715941631990,-500.0,0.0004,120]
[327258154,1715941632014,-1000.0,0.0004,120]
[327258155,1715941632037,-2675.63894569,0.0004,30]
[327258156,1715941632060,-5000.0,0.000403,79]
[327258157,1715941632085,-19563.98579605,0.00040592,90]
[327258158,1715941632109,-155.10424982,0.00040914,120]
[327258159,1715941632132,-1003.0,0.00041,120]
[327258160,1715941632154,-2690.16755561,0.00041093,120]
[327258161,1715941632178,-500.0,0.00041096,31]
[327258162,1715941632205,-500.0,0.00041096,31]
[327258163,1715941632229,-500.0,0.00041096,31]
[327258164,1715941632253,-500.0,0.00041096,31]
[327258165,1715941632277,-500.0,0.00041096,31]
[327258166,1715941632300,-500.0,0.00041096,31]
[327258167,1715941632325,-500.0,0.00041096,31]
[327258168,1715941632351,-500.0,0.00041096,31]
[327258169,1715941632376,-500.0,0.00041096,31]
[327258170,1715941632404,-500.0,0.00041096,31]
[327258171,1715941632428,-500.0,0.00041096,31]
[327258172,1715941632454,-500.0,0.00041096,31]
[327258173,1715941632479,-500.0,0.00041096,31]
[327258174,1715941632502,-500.0,0.00041096,31]
[327258175,1715941632527,-500.0,0.00041096,31]
[327258176,1715941632551,-500.0,0.00041096,31]
[327258177,1715941632574,-500.0,0.00041096,31]
[327258178,1715941632597,-500.0,0.00041096,31]
[327258179,1715941632620,-239.8704317,0.00041096,31]
[327258180,1715941632643,-500.0,0.00041096,31]
[327258181,1715941632670,-500.0,0.00041096,31]
[327258182,1715941632695,-500.0,0.00041096,31]
[327258183,1715941632718,-500.0,0.00041096,31]
[327258184,1715941632744,-500.0,0.00041096,31]
[327258185,1715941632768,-500.0,0.00041096,31]
[327258186,1715941632791,-500.0,0.00041096,31]
[327258187,1715941632814,-500.0,0.00041096,31]
[327258188,1715941632837,-500.0,0.00041096,31]
[327258189,1715941632861,-500.0,0.00041096,31]
[327258190,1715941632884,-500.0,0.00041096,31]
[327258191,1715941632907,-500.0,0.00041096,31]
[327258192,1715941632930,-167.90930219,0.00041096,31]
[327258193,1715941632953,-500.0,0.00041096,31]
[327258194,1715941632977,-500.0,0.00041096,31]
[327258195,1715941633001,-500.0,0.00041096,31]
[327258196,1715941633025,-500.0,0.00041096,31]
[327258197,1715941633048,-500.0,0.00041096,31]
[327258198,1715941633071,-500.0,0.00041096,31]
[327258199,1715941633097,-500.0,0.00041096,31]
[327258200,1715941633121,-500.0,0.00041096,31]
[327258201,1715941633144,-500.0,0.00041096,31]
[327258202,1715941633168,-225.1217051,0.00041096,31]
[327258203,1715941633191,-500.0,0.00041096,31]
[327258204,1715941633215,-500.0,0.00041096,31]
[327258205,1715941633239,-500.0,0.00041096,31]
[327258206,1715941633264,-500.0,0.00041096,31]
[327258207,1715941633287,-500.0,0.00041096,31]
[327258208,1715941633311,-500.0,0.00041096,31]
[327258209,1715941633335,-550.0,0.00041096,31]
[327258210,1715941633360,-450.0,0.00041096,31]
[327258211,1715941633385,-5000.0,0.000413,83]
[327258212,1715941633414,-5550.393791,0.00041553,120]
[327258213,1715941633438,-10000.0,0.00041666,120]
[327258214,1715941633462,-445.60358688,0.00042,120]
[327258215,1715941633485,-1000.0,0.00042,120]
[327258216,1715941633511,-1646.63391178,0.000424,120]
[327258217,1715941633662,-1949.51944185,0.000425,30]
[327258218,1715941633687,-875.88696063,0.000428,60]
[327258219,1715941633712,-5000.0,0.00043,89]
[327258220,1715941633739,-10000.0,0.00043666,120]
[327258221,1715941633763,-2214.95281581,0.000438,48]
[327258222,1715941633787,-156.59842194,0.00044,120]
[327258223,1715941633811,-1000.0,0.00044,44]
[327258224,1715941633834,-200.0,0.000448,120]
[327258225,1715941633857,-3530.6121905,0.000449,30]
[327258226,1715941633881,-220.42743678,0.00044999,120]
[327258227,1715941633904,-151.0,0.00045,120]
[327258228,1715941633926,-2000.9908004,0.00045,60]
[327258229,1715941633949,-198.07415542,0.00045,111]
[327258230,1715941633972,-2000.0,0.00045,32]
[327258231,1715941633996,-5000.0,0.00045,97]
[327258232,1715941634020,-5000.0,0.00045,30]
[327258233,1715941634043,-10000.0,0.00045666,120]
[327258234,1715941634067,-200.0,0.00045919,120]
[327258235,1715941634090,-1000.0,0.00046,120]
[327258236,1715941634112,-5000.0,0.00046,101]
[327258237,1715941634135,-151.0,0.00046411,120]
[327258238,1715941634158,-2269.95474565,0.000467,30]
[327258239,1715941634180,-3124.95331152,0.0004678,120]
[327258240,1715941634204,-200.0,0.00046909,120]
[327258241,1715941634227,-166.35991198,0.000473,120]
[327258242,1715941634250,-5550.393791,0.00047489,120]
[327258243,1715941634273,-172.56906733,0.00047665,120]
[327258244,1715941634296,-151.0,0.00047808,120]
[327258245,1715941634319,-2000.0,0.00048,30]
[327258246,1715941634341,-2000.0,0.00048,30]
[327258247,1715941634363,-2551.54502499,0.00048,60]
[327258248,1715941634385,-113696.0,0.0004824,120]
[327258249,1715941634409,-15354.017,0.000484,30]
[327258250,1715941634431,-5716.72316302,0.00049,120]
[327258251,1715941634454,-151.0,0.00049205,120]
[327258252,1715941634476,-500.0,0.00049315,31]
[327258253,1715941634499,-500.0,0.00049315,31]
[327258254,1715941634522,-200.17396188,0.00049315,31]
[327258255,1715941634544,-500.0,0.00049315,31]
[327258256,1715941634566,-500.0,0.00049315,31]
[327258257,1715941634589,-500.0,0.00049315,31]
[327258258,1715941634611,-300.0193291,0.00049315,31]
[327258259,1715941638190,2462.76041431,0.00049315,30]
[327258260,1715941644640,1104.50203022,0.000356,30]
[327258261,1715941661344,2462.76041431,0.000265,120]
[327258262,1715941713286,273.37336231,9.9e-05,2]
[327258263,1715941721174,273.37336231,9.9e-05,2]
[327258264,1715941722761,250.0,0.00014478,2]
[327258265,1715941729327,273.37336231,9.9e-05,2]
[327258266,1715941735932,24900.0,0.00014449,2]
[327258267,1715941737936,273.37336231,9.9e-05,2]
[327258305,1715941832554,-1225.79,0.00015367,2]
[327258359,1715941839299,-154.81422293,0.00015366,2]
[327258361,1715941839309,-888.40374467,0.00015367,2]
[327258363,1715941839319,-10422.32740666,0.00015368,2]
[327258365,1715941839329,-684.49986273,0.00015368,2]
[327258367,1715941839338,-154.81422293,0.00015369,2]
[327258369,1715941839348,-11050.87116823,0.0001537,2]
[327258371,1715941839357,-200.17351578,0.00015372,2]
[327258373,1715941839367,-154.70605849,0.00015473,2]
[327258375,1715941839377,-942.22196607,0.00015474,2]
[327258377,1715941839387,-29767.556999,0.00015475,2]
[327258379,1715941839396,-249.601657,0.00015488,2]
[327258380,1715941839406,-211.85506162,0.00015933,2]
[327258383,1715941839577,-500.0,0.00016438,2]
[327258384,1715941839588,-150.0,0.00016714,2]
[327258385,1715941839599,-150.0,0.00016938,2]
[327258386,1715941839609,-150.0,0.00017162,2]
[327258387,1715941839618,-150.0,0.00017386,2]
[327258388,1715941839628,-341.22779303,0.000175,2]
[327258389,1715941839641,-896.06411148,0.000175,2]
[327258390,1715941839651,-347.52202527,0.00017562,2]
[327258391,1715941840907,-1438.83454762,0.00017562,2]
[327258392,1715941840919,-777.7253266,0.00017563,2]
[327258393,1715941840929,-258.96353981,0.00017712,2]
[327258394,1715941840939,-409.51691661,0.00017791,2]
[327258395,1715941840949,-586.8046962,0.00017796,2]
[327258467,1715941843993,-298.15800892,0.00017796,2]
[327258469,1715941844003,-35.76844111,0.00017886,2]
[327258471,1715941844015,-1153.10681154,0.00017886,2]
[327258473,1715941844024,-4098.89965936,0.00017891,2]
[327258475,1715941844034,-1374.56356568,0.00017892,2]
[327258477,1715941844044,-284.88862026,0.00017892,2]
[327258479,1715941844053,-1087.65577337,0.00017892,2]
[327258762,1715941846619,-361.71977209,0.00017892,2]
[327258764,1715941846628,-316.94214515,0.00017893,2]
[327258766,1715941846638,-1042.75694356,0.00017894,2]
[327259458,1715941968493,45000.0,0.000265,120]
[327259459,1715941968536,44622.0,0.000265,120]
[327259460,1715942089275,818.20300932,9.999e-05,2]
[327259461,1715942106043,4474.74,0.000265,120]
[327259465,1715942290131,150.69860279,0.00022693,120]
[327259466,1715942360205,684.49986273,9.999e-05,2]
[327259467,1715942406348,150.0,0.000265,120]
[327259468,1715942589539,500.0,0.000171,6]
[327259470,1715942620867,818.20300932,9.999e-05,2]
[327259472,1715942726994,1000.0,0.00019,9]
[327259578,1715943034566,-187.2775472,0.00015182,2]
[327259579,1715943034576,-201.61303851,0.00015267,2]
[327259581,1715943034586,-7324.10941429,0.00015365,2]
[327259584,1715943034598,-569.12487461,0.00015365,2]
[327259585,1715943034608,-3393.92584116,0.00015366,2]
[327259587,1715943034617,-1328.70335646,0.00015488,2]
[327259590,1715943034629,-480.25693471,0.00015488,2]
[327259592,1715943034642,-383.7998292,0.00015488,2]
[327259601,1715943034723,-3336.36033083,0.00015488,2]
[327259603,1715943034732,-250.0,0.00015643,2]
[327259604,1715943034742,-249.601657,0.00015709,2]
[327259605,1715943034751,-522.94149242,0.00016438,2]
[327259606,1715943034761,-500.0,0.00016438,2]
[327259607,1715943034770,-500.54888772,0.00016438,2]
[327259608,1715943034780,-160.53704393,0.00016915,2]
[327259609,1715943034790,-960.61022502,0.00017696,2]
[327259610,1715943034799,-707.97016412,0.00017708,2]
[327259611,1715943034809,-256.17572943,0.00017715,2]
[327259612,1715943034819,-393.37531564,0.00017795,2]
[327259613,1715943034830,-335.61476251,0.00017795,2]
[327259668,1715943040326,-150.0,0.00016726,2]
[327259671,1715943040336,-164.38523749,0.00017795,2]
[327259673,1715943040347,-809.58,0.00017795,2]
[327259675,1715943040356,-500.0,0.00017795,2]
[327259677,1715943040366,-500.0,0.00017795,2]
[327259679,1715943040376,-28.21498606,0.00017795,2]
[327259681,1715943040388,-1507.56776405,0.00017795,2]
[327259772,1715943041217,-256.99799994,0.00017795,2]
[327259775,1715943041229,-514.36843547,0.00017795,2]
[327259777,1715943041241,-1500.0343278,0.00017795,2]
[327260036,1715943044160,-4275.0,0.00017795,2]
[327260314,1715943046944,-6143.79648668,0.00017795,2]
[327260316,1715943046953,-2254.67,0.00017795,2]
[327260318,1715943046963,-500.0,0.00017795,2]
[327260320,1715943046972,-500.0,0.00017795,2]
[327260322,1715943046982,-818.4821224,0.00017796,2]
[327260324,1715943046991,-500.0,0.00017796,2]
[327260326,1715943047000,-500.0,0.00017796,2]
[327260328,1715943047010,-639.14824231,0.00017796,2]
[327260330,1715943047020,-696.99,0.00017796,2]
[327260332,1715943047029,-500.0,0.00017796,2]
[327260334,1715943047039,-500.0,0.00017796,2]
[327260336,1715943047048,-500.0,0.00017796,2]
[327260338,1715943047057,-501.15596469,0.00017796,2]
[327260340,1715943047066,-500.0,0.00017796,2]
[327260342,1715943047076,-500.0,0.00017796,2]
[327260344,1715943047085,-501.59568468,0.00017796,2]
[327260346,1715943047099,-526.45702653,0.00017796,2]
[327260348,1715943047109,-500.8703694,0.00017796,2]
[327260350,1715943047119,-501.53933534,0.00017796,2]
[327260352,1715943047129,-502.25911186,0.00017796,2]
[327260354,1715943047138,-191.86067184,0.00017796,2]
[327260356,1715943047148,-500.0,0.00017796,2]
[327260358,1715943047158,-500.0,0.00017796,2]
[327260360,1715943047169,-500.0,0.00017796,2]
[327260362,1715943047179,-500.0,0.00017796,2]
[327260364,1715943047189,-500.0,0.00017796,2]
[327260366,1715943047198,-500.0,0.00017796,2]
[327260368,1715943047208,-2695.34,0.00017796,2]
[327260371,1715943047218,-500.0,0.00017796,2]
[327260372,1715943047227,-500.0,0.00017796,2]
[327260374,1715943047236,-628.71713226,0.00017797,2]
[327260376,1715943047246,-500.0,0.00017797,2]
[327260378,1715943047255,-500.0,0.00017797,2]
[327260380,1715943047265,-500.0,0.00017797,2]
[327260382,1715943047274,-500.0,0.00017797,2]
[327260384,1715943047283,-500.0,0.00017797,2]
[327260386,1715943047292,-500.0,0.00017797,2]
[327260388,1715943047301,-518.58,0.00017797,2]
[327260390,1715943047311,-500.0,0.00017797,2]
[327260392,1715943047320,-1560.1953375,0.00017798,2]
[327260835,1715944232207,-250.0,0.00016528,2]
[327260837,1715944232217,-8595.3594883,0.00016548,2]
[327260839,1715944232226,-139.04946188,0.00016904,2]
[327260843,1715944232282,-15.65659661,0.00016904,2]
[327260844,1715944232291,-3869.79679846,0.00017407,2]
[327260845,1715944232303,-351.66322153,0.00017407,2]
[327260846,1715944232313,-416.98047207,0.00017459,2]
[327260847,1715944232322,-150.0,0.00017532,2]
[327260848,1715944232335,-566.37613128,0.00017793,2]
[327260849,1715944232344,-528.76307526,0.00017793,2]
[327260850,1715944232353,-2468.37891831,0.00017794,2]
[327260851,1715944232362,-3925.26739996,0.00017795,2]